Cogmind - Beta 15 @@@ ROGUE MODE // 2025.05.26 @ 22:28:04 Player: erfael Result: Destroyed by 9Q-N9F(R) with Subdweller Shrapnel Launcher Performance ------------- Evolutions (0) 0 Regions Visited (3) 600 Robots Destroyed (14) 70 Value Destroyed (400) 400 Prototype IDs (0) 0 Alien Tech Used (0) 0 Bonus (-24) -24 TOTAL SCORE: 1046 Bonus ------- Friendly Fire -24 Cogmind --------- Core Integrity 0/250 Matter 262/300 Energy 200/200 System Corruption 0% Temperature Cool (0) Movement Walking (140) Location -10/Subcaves Parts ------- > --- POWER (1) -------- Subdweller Power Source > --- PROPULSION (2) --- Makeshift Leg > --- UTILITY (2) ------ Small Storage Unit Seismic Detector > --- WEAPON (2) ------- Medium Laser Grenade Launcher > --- INVENTORY (8) ---- Subdweller Power Source Neutrino Core Carbon-fiber Leg Improved Terrain Scanner ECM Suite Subdweller Machine Gun Mining Laser Peak State ------------ > --- POWER ------------ Subdweller Power Source > --- PROPULSION ------- Carbon-fiber Leg Carbon-fiber Leg > --- UTILITY ---------- Small Storage Unit Improved Terrain Scanner > --- WEAPON ----------- Medium Laser Subdweller Laser > --- INVENTORY -------- Neutrino Core Light Treads Spiked Treads Seismic Detector ECM Suite Grenade Launcher Mining Laser [Rating: 16] Favorites ----------- Power Subdweller Power Source Engine Subdweller Power Source Propulsion Aluminum Leg Treads Light Treads Leg Aluminum Leg Utility Small Storage Unit Device Improved Terrain Scanner Storage Small Storage Unit Weapon Assault Rifle Energy Gun Medium Laser Ballistic Gun Assault Rifle Launcher Grenade Launcher Special Weapon Mining Laser Build | -11 -10 -10 -10 ------- Run | Yrd Mat Min Sub Slots Evolved . | . . . . Power . | . . . . Propulsion . | . . . . Utility . | . . . . Weapon . | . . . . Parts Attached 24 | 6 2 3 13 Power 5 | 1 . . 4 Engine 5 | 1 . . 4 Core . | . . . . Reactor . | . . . . Propulsion 8 | 2 . 2 4 Treads 2 | . . 2 . Leg 6 | 2 . . 4 Wheel . | . . . . Hover . | . . . . Flight . | . . . . Utility 4 | 1 2 1 . Device 3 | . 2 1 . Storage 1 | 1 . . . Processor . | . . . . Hackware . | . . . . Protection . | . . . . Artifact . | . . . . Weapon 7 | 2 . . 5 Energy Gun 2 | . . . 2 Energy Cannon . | . . . . Ballistic Gun 3 | 2 . . 1 Ballistic Cannon . | . . . . Launcher 1 | . . . 1 Special Weapon 1 | . . . 1 Impact Weapon . | . . . . Slashing Weapon . | . . . . Piercing Weapon . | . . . . Special Melee Weapon . | . . . . Unidentified Prototypes . | . . . . Parts Lost 8 | . . 4 4 Power 2 | . . 1 1 Propulsion 4 | . . 2 2 Utility . | . . . . Weapon 2 | . . 1 1 Highest Loss Streak 3 | . . 3 2 To Critical Strikes . | . . . . Average Backups 7 | 3 7 7 7 Power 1 | . 1 1 1 Propulsion 1 | 2 4 2 1 Utility 1 | . . 1 2 Weapon 2 | . 1 2 2 Tool/Special . | . . . . Unused Backups 6 | . 1 2 3 Power 2 | . . . 2 Propulsion 3 | . . 2 1 Utility . | . . . . Weapon 1 | . 1 . . Tool/Special . | . . . . Average Slot Usage (%) 85 | . 98 97 81 Engine 10 | . 14 14 9 Treads 3 | . . 3 4 Leg 20 | . 28 22 19 Device 13 | . 13 14 14 Storage 14 | . 14 14 14 Energy Gun 4 | . . . 5 Ballistic Gun 13 | . 28 27 8 Special Weapon 2 | . . . 3 Peak Build Rating 16 | 6 7 9 16 Average Rating 9 | 5 6 8 10 On Entrance 4 | . 6 7 6 Naked Turns . | . . . . Heaviest Build 18 | 11 13 13 18 Greatest Support 40 | 20 20 40 40 Greatest Overweight (x) 1 | . . 1 . Average Overweight (x) . | . . . . Largest Inventory Capacity 8 | 8 8 8 8 Average Capacity 7 | 7 8 8 8 Most Carried 8 | 6 8 8 8 Average Carried 7 | 3 7 7 7 Final Capacity 8 | 8 8 8 8 Final Carried 8 | 6 8 7 7 Class Distribution -------------------- 98% | Mutant Dominant Class ---------------- Mutant | -10/Materials Mutant | -10/Mines Mutant | -10/Subcaves Resources | -11 -10 -10 -10 ----------- Run | Yrd Mat Min Sub Matter Collected 604 | 196 87 100 221 Remotely . | . . . . Salvage Created 470 | . 87 72 311 Parts 36 | . 2 11 23 Haulers Intercepted . | . . . . Recyclers Shooed . | . . . . Parts Field Recycled . | . . . . Retrieved Matter . | . . . . Parts Self-Destructed 13 | . . . 13 Prevented . | . . . . Kills | -11 -10 -10 -10 ------- Run | Yrd Mat Min Sub Combat Hostiles Destroyed 13 | . 2 4 7 Guns 12 | . 2 4 6 AOE 1 | . . . 1 Classes Destroyed 5 | . 1 2 2 Tunneler 1 | . . 1 . Swarmer 4 | . . 4 . Grunt 2 | . 2 . . Sentry 1 | . . . 1 Subdweller 6 | . . . 6 Best Kill Streak 3 | . 2 3 3 Combat Bots Only 3 | . 2 2 3 Max Kills in Single Turn 1 | . 1 1 1 Gunslinging . | . . . . Exploded 1 | . . . 1 Melee . | . . . . Uniques/NPCs Destroyed . | . . . . Combat | -11 -10 -10 -10 -------- Run | Yrd Mat Min Sub Hostile Shots Fired 106 | . 10 48 48 Missed 31 | . 3 11 17 Hits 75 | . 7 37 31 Projectile 75 | . 7 37 31 AOE 10 | . . 8 2 Critical Strikes 1 | . . . 1 Damage Taken 1385 | . 87 578 720 Core 267 | . . 93 174 Absorbed by Shields . | . . . . Core Remaining (%) 100 | 100 . . . Volleys Fired 97 | . 10 14 73 Largest 2 | . 2 2 2 Hottest 110 | . 40 40 110 Shots Fired 130 | . 20 28 82 Gun 93 | . 20 28 45 Cannon . | . . . . Launcher 2 | . . . 2 Special 35 | . . . 35 Kinetic 50 | . 20 28 2 Thermal 78 | . . . 78 Explosive 2 | . . . 2 Electromagnetic . | . . . . Robot Hit Streak 22 | . 4 5 22 Robot Miss Streak 5 | . 2 5 2 Penetration Max . | . . . . Secondary Targets 1 | . . 1 . Max Gunslinging Chain 1 | . . 1 . Shots Hit Robots 61 | . 12 13 36 Core Hits 27 | . 5 8 14 Critical Kills . | . . . . Critical Parts Destroyed . | . . . . Critical Strikes 1 | . . . 1 Burn 1 | . . . 1 Melee Attacks . | . . . . Impact . | . . . . Slashing . | . . . . Piercing . | . . . . Sneak Attacks . | . . . . Combat Hostiles . | . . . . Follow-up Attacks . | . . . . Damage Inflicted 716 | . 137 165 414 Guns 690 | . 137 159 394 Cannons . | . . . . Explosions 20 | . . . 20 Melee . | . . . . Ramming 6 | . . 6 . Kinetic 332 | . 137 159 36 Thermal 358 | . . . 358 Explosive 20 | . . . 20 Electromagnetic . | . . . . Impact . | . . . . Slashing . | . . . . Piercing . | . . . . Highest Corruption . | . . . . Average Corruption . | . . . . Corruption Purged . | . . . . Corruption Blocked . | . . . . Overload Shots . | . . . . Overflow Damage . | . . . . Projectiles . | . . . . Explosions . | . . . . Melee . | . . . . Knockbacks . | . . . . Impact . | . . . . Kinetic . | . . . . Secondary . | . . . . Self-Inflicted Damage . | . . . . Shots . | . . . . Rammed . | . . . . Targets Rammed 3 | . 1 2 . Kicked 3 | . 1 2 . Crushed . | . . . . Highest Temperature 6 | . 6 . 2 Average Temperature 3 | . 6 . 2 Received Heat Transfer 99 | . 48 . 51 Siege Activations . | . . . . Martial Activations . | . . . . Shielding Activations . | . . . . Robots Disrupted . | . . . . Combat Hostiles . | . . . . Robots Corrupted . | . . . . Combat Hostiles . | . . . . Parts Fried . | . . . . Impact Corruptions . | . . . . Robots Melted . | . . . . Combat Hostiles . | . . . . Parts Melted 2 | . . . 2 Heat Transferred 1049 | . . . 1049 Parts Sabotaged . | . . . . Parts Stolen . | . . . . Parts Stripped . | . . . . Power Chain Reactions . | . . . . Alert | -11 -10 -10 -10 ------- Run | Yrd Mat Min Sub Maximum Alert Level . | . . . . Low Security (%) 100 | 100 100 100 . Level 1 . | . . . . Level 2 . | . . . . Level 3 . | . . . . Level 4 . | . . . . Level 5 . | . . . . High Security . | . . . . Max Security . | . . . . Peak Influence 45 | . 40 45 . Initial . | . . . . Average 8 | . 6 13 . Influence Increases 202 | . 87 95 20 Destroy 0b10 Robot/C 140 | . 40 80 20 Destroy 0b10 Robot/NC 5 | . . 5 . Destroy Leader 10 | . . 10 . Successful Hack 2 | . 2 . . Lose Combat Pursuer 45 | . 45 . . Influence Decreases 202 | . 87 95 20 Time Decay 182 | . 87 75 20 Lost Part 20 | . . 20 . Squads Dispatched 1 | . 1 . . Investigation . | . . . . Extermination . | . . . . Reinforcement 1 | . 1 . . Assault . | . . . . Garrison . | . . . . Intercept . | . . . . Searches Triggered . | . . . . Construction Impeded . | . . . . Haulers Reinforced . | . . . . Active Scanning Responses . | . . . . Cargo Convoy Interrupts . | . . . . Stealth | -11 -10 -10 -10 --------- Run | Yrd Mat Min Sub Distress Signals 2 | . 2 . . Communications Jammed . | . . . . Distress Signals . | . . . . Times Spotted 38 | . 10 9 19 Peak Tracking Total 6 | . 3 3 6 Tactical Retreats 3 | . 3 . . Traps | -11 -10 -10 -10 ------- Run | Yrd Mat Min Sub Traps Triggered 2 | . . . 2 Indirectly . | . . . . Trap Hack Attempts . | . . . . Triggered . | . . . . Disarmed . | . . . . Reprogrammed . | . . . . Reused . | . . . . Traps Extracted . | . . . . Installed . | . . . . Triggered . | . . . . Machines | -11 -10 -10 -10 ---------- Run | Yrd Mat Min Sub Machines Disabled . | . . . . Max in Single Turn . | . . . . Machines Repaired . | . . . . Machines Dismantled . | . . . . Machines Sabotaged . | . . . . Overloaded Fab Kills . | . . . . Hacking | -11 -10 -10 -10 --------- Run | Yrd Mat Min Sub Machines Accessed 3 | . 2 . 1 Terminals 2 | . 2 . . Fabricators . | . . . . Repair Stations . | . . . . Recycling Units . | . . . . Scanalyzers . | . . . . Garrison Access . | . . . . Total Hacks 7 | . 4 . 3 Successful 5 | . 2 . 3 Failed 2 | . 2 . . Catastrophic . | . . . . Database Lockouts . | . . . . Manual 2 | . 2 . . Terminals 4 | . 4 . . Fabricators . | . . . . Repair Stations . | . . . . Recycling Units . | . . . . Scanalyzers . | . . . . Garrison Access . | . . . . Terminal Hacks 4 | . 1 . 3 Record 4 | . 1 . 3 Fabricator Hacks . | . . . . Repair Station Hacks . | . . . . Recycling Unit Hacks . | . . . . Scanalyzer . | . . . . Garrison Access Hacks . | . . . . Unauthorized Hacks 1 | . 1 . . Terminals 1 | . 1 . . Botnet 1 | . 1 . . Fabricators . | . . . . Repair Stations . | . . . . Recycling Units . | . . . . Scanalyzers . | . . . . Garrison Access . | . . . . Data Cores Recovered . | . . . . Used . | . . . . Hacking Detections 1 | . 1 . . Full Trace Events . | . . . . Feedback Events . | . . . . Feedback Blocked . | . . . . Robot Schematics Acquired . | . . . . Robots Built . | . . . . Authchips . | . . . . Time . | . . . . Total Robot Build Rating . | . . . . Part Schematics Acquired . | . . . . Parts Built . | . . . . Authchips . | . . . . Time . | . . . . Total Part Build Rating . | . . . . Parts Repaired . | . . . . Time . | . . . . Parts Recycled . | . . . . Recycled Matter . | . . . . Retrieved Matter . | . . . . Retrieved Components . | . . . . Parts Scanalyzed . | . . . . Part Schematics Acquired . | . . . . Parts Damaged . | . . . . Bothacking | -11 -10 -10 -10 ------------ Run | Yrd Mat Min Sub Used RIF Installer . | . . . . Robots Hacked . | . . . . Non-combat . | . . . . Combat . | . . . . Robot Hacks Applied . | . . . . Relay Couplers Released . | . . . . Fabnet Peak Effective % . | . . . . Robots Rewired . | . . . . Allies Hacked . | . . . . Hacks Repelled . | . . . . Allies | -11 -10 -10 -10 -------- Run | Yrd Mat Min Sub Total Allies . | . . . . Largest Group . | . . . . Highest-Rated Group . | . . . . Highest-Rated Ally . | . . . . Total Orders . | . . . . Ally Attacks . | . . . . Total Damage . | . . . . Kills . | . . . . Allies Corrupted . | . . . . Allies Melted . | . . . . Intel | -11 -10 -10 -10 ------- Run | Yrd Mat Min Sub Active Infowar (turns) 2638 | . 398 249 1991 Terrain 1823 | . . 205 1618 Seismic 318 | . 248 . 70 ECM 497 | . 150 44 303 Robot Analysis Total . | . . . . Derelict Logs Recovered 1 | . . 1 . Drone Launches . | . . . . Drone Recoveries . | . . . . Exploration | -11 -10 -10 -10 ------------- Run | Yrd Mat Min Sub Turns Passed 2729 | 77 412 249 1991 Spaces Moved 1764 | 57 301 153 1253 Core 8 | 8 . . . Treads 397 | . . 19 378 Legs 1359 | 49 301 134 875 Wheels . | . . . . Hover . | . . . . Flight . | . . . . Fastest Speed 50 | 50 120 120 120 Average Speed 131 | 110 120 127 135 Slowest Speed 190 | 120 120 190 160 Overloaded Moves . | . . . . Propulsion Burnouts . | . . . . Robots Hopped . | . . . . Potential Cave-ins . | . . . . Cave-ins Triggered . | . . . . Exploration Rate (%) 31 | 5 44 26 52 Regions Visited 3 Branch Regions 2 Pre-discovered Areas . | . . . . Known Exits Taken . | . . . . Unknown Exits Taken 3 | 1 1 1 . Scrap Searched 7 | . . 1 6 Spaces Dug . | . . . . Terrain Destroyed 7 | . . . 7 Melee . | . . . . Projectile . | . . . . AOE 7 | . . . 7 Terrain Rammed . | . . . . Walls Destroyed . | . . . . Machines Disabled . | . . . . Actions | -11 -10 -10 -10 --------- Run | Yrd Mat Min Sub Total 1974 | 68 333 183 1390 Wait 40 | . 16 6 18 Move 1761 | 56 300 152 1253 Hop . | . . . . Pick Up 23 | 6 3 2 12 Fast Attach 9 | 6 1 1 1 Attach 12 | . . 2 10 Detach 3 | . . 1 2 Swap 15 | . 1 . 14 Drop 11 | . 1 3 7 Fire 97 | . 10 14 73 Melee . | . . . . Ram . | . . . . Kick 3 | . 1 2 . Crush . | . . . . Escape Stasis . | . . . . Rewire . | . . . . Trap . | . . . . Miscellaneous . | . . . . Route ------- -11/Scrapyard -10/Materials (discovered 2 exits: [*Mat] / [*Min]) -10/Mines -10/Subcaves History --------- Turn | Location | Event 8 | -11/Scrapyard | Discovered new exit (range 14) 78 | -11/Scrapyard | Entered Materials 286 | -10/Materials | Discovered new exit (range 10) 303 | -10/Materials | Build established: Mutant 321 | -10/Materials | Discovered new exit (range 15) 490 | -10/Materials | Entered Mines 609 | -10/Mines | Learned Materials terminal intel 645 | -10/Mines | YI-UF0 nonchalantly dropped a Grenade Launcher on the ground 734 | -10/Mines | Discovered new exit (range 5) 739 | -10/Mines | Entered Subcaves 740 | -10/Subcaves | Approached by a straggling Scientist 769 | -10/Subcaves | Lost 3 parts (1p1n1w) 907 | -10/Subcaves | Ambushed by swarm of Subdwellers 1440 | -10/Subcaves | A swath of the cavern ceiling suddenly collapsed 1673 | -10/Subcaves | Shifting Twisted Machinery released Sub. Beam Cannon 2075 | -10/Subcaves | Shifting Twisted Machinery released Spk. Treads 2085 | -10/Subcaves | Visited Clippyterm 2088 | -10/Subcaves | Learned Factory fabricator intel 2231 | -10/Subcaves | Disturbed a concealed Subdweller 2371 | -10/Subcaves | Core integrity fell below 50% 2725 | -10/Subcaves | Core integrity fell below 20% 2730 | -10/Subcaves | Destroyed by 9Q-N9F(R) with Subdweller Shrapnel Launcher Last Messages --------------- 02349_ Acquired Mak. Leg. 02350_ Acquired 10 matter. 02352_ Acquired Mak. Leg. 02366_ OI-O3U(R) destroyed. 02366_ Sub. Laser shoots sparks and powers down. 02369_ Broken Sub. Laser destroyed. 02372_ Carbon-fiber Leg destroyed. 02375_ 0V-EO9(R) suffers critical hit (Burn). 02383_ 0V-EO9(R) destroyed. 02389_ OY-MGM(R) affixes Scrap Shield Fragment to Scrap Shield. 02393_ OY-MGM(R) destroyed. 02401_ Acquired 49 matter. 02404_ Acquired Sub. Machine Gun. 02413_ Acquired 11 matter. 02593_ Y-45 Defender destroyed. 02602_ Beam Rifle fries itself beyond repair. 02603_ Acquired 41 matter. 02604_ Lgt. Treads fries itself beyond repair. 02628_ The unstable cave ceiling collapses. 02722_ Mak. Leg destroyed. Map ----- +----------------------------------------------------+ | ?????????????????????????????????????????????????? | | ?????????????????????????????????????????????????? | | ?????????????????????????????????????????????????? | | ?????????????????????????????????????????????????? | | ?????????????????????????????????????????????????? | | ?????????????????????????????????????????????????? | | ?????????????????????????????????????????????????? | | ?????????????????????????????????????????????????? | | ?????????????????????????????????????????????????? | | ?????????????????????????????????????????????????? | | ??????????????????????????????#####??????????????? | | ??????????????????????????????# ##?????????????? | | ?????????????????????????????? #?????????????? | | ?????????????????????????????? ###???????????? | | ?????????????????????????????? ???????????? | | ??????????????????????????????# ???????????? | | ?????????????????????????????## ????####????# | | ?????????????????????????????# ????## #???## | | ?????????????????????????????? #?????# ##??# | | ??????????????????????????????# #?????# #??# | | ???????????????????????##????## #?????## ##?# | | ??????????? ??????????# ???## #??????## ### | | ??????????? ?????## #### ##??????# | | ?????????????# ### ## ##???### ## | | ?????????????# ### ##??# ## | | ?????????????# @ ;; ;# #### | | ?????????? RR ;;;;; ## ## | | ?????????? ## ### # ## | | ??????????????????????## ## | | ???????????????????????## ### # | | ????????????????????????## ##### | | ?????????????????????????## ;; ;#;# ########???? | | ??????????????????????????#############??????????? | | ?????????????????????????????????????????????????? | | ?????????????????????????????????????????????????? | | ?????????????????????????????????????????????????? | | ?????????????????????????????????????????????????? | | ?????????????????????????????????????????????????? | | ?????????????????????????????????????????????????? | | ?????????????????????????????????????????????????? | | ?????????????????????????????????????????????????? | | ?????????????????????????????????????????????????? | | ?????????????????????????????????????????????????? | | ?????????????????????????????????????????????????? | | ?????????????????????????????????????????????????? | | ?????????????????????????????????????????????????? | | ?????????????????????????????????????????????????? | | | | | | | +----------------------------------------------------+ Best States ------------- Heat Dissipation 25 Energy Generation 15 Energy Capacity 200 Matter Stores 300 Matter Capacity 300 Sight Range 16 Terrain Scan Range 16 Terrain Scan Density 10 ECM Strength 1 Evasion (%) 55 Recoil Reduction 2 Item Schematics ----------------- None Robot Schematics ------------------ None Fabricated ------------ Nothing Repaired ---------- Nothing Alien Tech Used ----------------- None Achievements -------------- None Challenges ------------ None Game ------ Seed TeslaFortressStatue Manual? 0 Play Time 00:47:58 Cumulative 5.4 hours Start 2025.05.26 @ 13:59:42 End 2025.05.26 @ 22:28:04 Sessions 5 Manual Loads 0 Difficulty Rogue Special Mode None Game No. 10 Rogue 10 Adventurer 0 Explorer 0 Win Type - Total 0 Types 0/0/0/0/0/0/0/0/0/0 Lore% 2 Gallery% 6 Achievement% 7 Wizard Run 0 Options --------- Layout 0 ASCII 0 Keyboard 1 Movement Numpad Keybinds 0 Fullscreen 1 Font 18/SmallcapsGlow Map View 76x50 Zoom Use 2% Tactical HUD 1 Map Filters NONE Filters NONE Steam 1 RUN: fa02087a-6a32-449c-9bd3-cbaec80a657a